[Event "*** Titled Tuesday Blitz"]
[Site "Chess.com"]
[Date "2020.02.04"]
[Round "7"]
[White "norwaytoadog"]
[Black "Majkelopulos"]
[Result "0-1"]
[WhiteElo "2288"]
[BlackElo "2481"]
[TimeControl "180+2"]
[EndTime "14:33:21 PST"]
[Termination "Majkelopulos won by resignation"]

1. e4 {[%clk 0:02:54.5]} 1... e5 {[%clk 0:03:01]} 2. Nf3 {[%clk 0:02:55.3]} 2...
Nc6 {[%clk 0:03:02.6]} 3. Bb5 {[%clk 0:02:55.8]} 3... g6 {[%clk 0:03:03.6]} 4.
c3 {[%clk 0:02:55.7]} 4... d6 {[%clk 0:03:04.5]} 5. d4 {[%clk 0:02:55.8]} 5...
Bd7 {[%clk 0:03:05.6]} 6. O-O {[%clk 0:02:55.1]} 6... Bg7 {[%clk 0:03:06.4]} 7.
Bg5 {[%clk 0:02:50.2]} 7... Nge7 {[%clk 0:03:04.1]} 8. d5 {[%clk 0:02:48.3]}
8... Nb8 {[%clk 0:03:04.6]} 9. Qa4 {[%clk 0:02:44.8]} 9... h6 {[%clk 0:03:01]}
10. Be3 {[%clk 0:02:21.6]} 10... O-O {[%clk 0:02:59.5]} 11. Bxd7 {[%clk
0:02:15.7]} 11... Nxd7 {[%clk 0:03:00.2]} 12. c4 {[%clk 0:02:16]} 12... f5
{[%clk 0:03:00.9]} 13. exf5 {[%clk 0:02:16.3]} 13... Nxf5 {[%clk 0:02:59.1]} 14.
Nc3 {[%clk 0:02:11.7]} 14... Nxe3 {[%clk 0:02:59]} 15. fxe3 {[%clk 0:02:12.3]}
15... Nc5 {[%clk 0:03:00.7]} 16. Qc2 {[%clk 0:02:11]} 16... g5 {[%clk
0:03:00.9]} 17. Ne4 {[%clk 0:02:04.5]} 17... Nxe4 {[%clk 0:02:57.7]} 18. Qxe4
{[%clk 0:02:05.2]} 18... Qe8 {[%clk 0:02:56.4]} 19. Rac1 {[%clk 0:01:53.9]}
19... b6 {[%clk 0:02:57]} 20. Rc2 {[%clk 0:01:46.7]} 20... Qh5 {[%clk
0:02:56.3]} 21. h3 {[%clk 0:01:43.7]} 21... Rf7 {[%clk 0:02:51.2]} 22. Rcf2
{[%clk 0:01:01.3]} 22... Raf8 {[%clk 0:02:48.9]} 23. Kh2 {[%clk 0:00:54.5]}
23... g4 {[%clk 0:02:44.2]} 24. Qxg4 {[%clk 0:00:52.2]} 24... Qxg4 {[%clk
0:02:43.8]} 25. hxg4 {[%clk 0:00:53.5]} 25... e4 {[%clk 0:02:45.5]} 26. Kg3
{[%clk 0:00:45.2]} 26... exf3 {[%clk 0:02:41.6]} 27. gxf3 {[%clk 0:00:46.5]}
27... Re7 {[%clk 0:02:39.6]} 28. Re2 {[%clk 0:00:43.6]} 28... Be5+ {[%clk
0:02:30.2]} 29. f4 {[%clk 0:00:41.7]} 29... Bf6 {[%clk 0:02:21.8]} 30. Kf3
{[%clk 0:00:41.8]} 30... Rfe8 {[%clk 0:02:22.2]} 31. e4 {[%clk 0:00:37]} 31...
Kg7 {[%clk 0:02:12.1]} 32. Rfe1 {[%clk 0:00:32.2]} 32... Rf7 {[%clk 0:02:10.9]}
33. Kg3 {[%clk 0:00:30.6]} 33... a5 {[%clk 0:02:07.9]} 34. Rh1 {[%clk
0:00:25.1]} 34... Rfe7 {[%clk 0:02:05.2]} 35. Rhe1 {[%clk 0:00:25.7]} 35... Bd4
{[%clk 0:02:04]} 36. Kf3 {[%clk 0:00:25]} 36... a4 {[%clk 0:02:04.3]} 37. b3
{[%clk 0:00:25]} 37... axb3 {[%clk 0:02:03.8]} 38. axb3 {[%clk 0:00:26.1]} 38...
Ra8 {[%clk 0:02:05.5]} 39. e5 {[%clk 0:00:25.4]} 39... dxe5 {[%clk 0:02:06.3]}
40. fxe5 {[%clk 0:00:26.2]} 40... Ra3 {[%clk 0:02:08]} 41. d6 {[%clk 0:00:20.8]}
41... Rxb3+ {[%clk 0:02:03.9]} 42. Ke4 {[%clk 0:00:19.8]} 42... cxd6 {[%clk
0:01:48.2]} 43. Kxd4 {[%clk 0:00:20]} 43... dxe5+ {[%clk 0:01:49.8]} 44. Rxe5
{[%clk 0:00:20.6]} 44... Rxe5 {[%clk 0:01:50.4]} 45. Rxe5 {[%clk 0:00:20.9]}
45... Rg3 {[%clk 0:01:52.1]} 46. Re6 {[%clk 0:00:20.5]} 46... Rxg4+ {[%clk
0:01:53.1]} 47. Kd5 {[%clk 0:00:19.7]} 47... Rg5+ {[%clk 0:01:43.1]} 48. Kc6
{[%clk 0:00:19.6]} 48... Rc5+ {[%clk 0:01:44.2]} 49. Kxb6 {[%clk 0:00:18.9]}
49... Rxc4 {[%clk 0:01:46.1]} 50. Kb5 {[%clk 0:00:18.3]} 50... Rc1 {[%clk
0:01:46.8]} 51. Kb4 {[%clk 0:00:16.7]} 51... h5 {[%clk 0:01:47.9]} 52. Kb3
{[%clk 0:00:17.8]} 52... h4 {[%clk 0:01:42.8]} 53. Kb2 {[%clk 0:00:16.7]} 53...
Rc4 {[%clk 0:01:40.7]} 54. Kb3 {[%clk 0:00:16.4]} 54... Rc5 {[%clk 0:01:40.4]}
55. Kb4 {[%clk 0:00:11.7]} 55... Rc8 {[%clk 0:01:41.1]} 56. Re3 {[%clk
0:00:09.7]} 56... Kf6 {[%clk 0:01:40.6]} 57. Rh3 {[%clk 0:00:09.2]} 57... Kg5
{[%clk 0:01:41.5]} 58. Kb3 {[%clk 0:00:08.5]} 58... Kg4 {[%clk 0:01:42.9]} 59.
Rh1 {[%clk 0:00:04.5]} 59... h3 {[%clk 0:01:44.4]} 60. Rg1+ {[%clk 0:00:04.4]}
60... Kf3 {[%clk 0:01:45.8]} 61. Rg6 {[%clk 0:00:03.2]} 61... h2 {[%clk
0:01:44.5]} 62. Rh6 {[%clk 0:00:04.3]} 62... Kg2 {[%clk 0:01:46.1]} 63. Rg6+
{[%clk 0:00:05.5]} 63... Kh1 {[%clk 0:01:47.6]} 64. Kb2 {[%clk 0:00:06]} 64...
Rc4 {[%clk 0:01:48.5]} 65. Kb3 {[%clk 0:00:06.8]} 65... Rc1 {[%clk 0:01:49.5]}
66. Kb2 {[%clk 0:00:06.5]} 66... Rg1 {[%clk 0:01:50.7]} 67. Rh6 {[%clk
0:00:07.1]} 67... Rg2+ {[%clk 0:01:52.2]} 68. Kc3 {[%clk 0:00:07.3]} 68... Kg1
{[%clk 0:01:54.1]} 0-1

[Event "*** Titled Tuesday Blitz"]
[Site "Chess.com"]
[Date "2020.02.04"]
[Round "7"]
[White "mbojan"]
[Black "BeanScreen"]
[Result "1-0"]
[WhiteElo "2753"]
[BlackElo "2581"]
[TimeControl "180+2"]
[EndTime "14:33:24 PST"]
[Termination "mbojan won by checkmate"]

1. e4 {[%clk 0:03:01.9]} 1... e5 {[%clk 0:03:00.2]} 2. Nf3 {[%clk 0:03:02.9]}
2... Nc6 {[%clk 0:03:01.9]} 3. Bb5 {[%clk 0:03:04.5]} 3... a6 {[%clk 0:03:03.5]}
4. Ba4 {[%clk 0:03:05.9]} 4... d6 {[%clk 0:03:05.4]} 5. O-O {[%clk 0:03:06.6]}
5... Nf6 {[%clk 0:03:06.8]} 6. Re1 {[%clk 0:03:08.1]} 6... Be7 {[%clk
0:03:08.4]} 7. c3 {[%clk 0:03:09.7]} 7... O-O {[%clk 0:03:09.6]} 8. h3 {[%clk
0:03:08]} 8... b5 {[%clk 0:03:10.8]} 9. Bb3 {[%clk 0:03:04.6]} 9... Na5 {[%clk
0:03:11.5]} 10. Bc2 {[%clk 0:03:05.9]} 10... c5 {[%clk 0:03:12.9]} 11. d4 {[%clk
0:03:07.1]} 11... Qc7 {[%clk 0:03:14.2]} 12. d5 {[%clk 0:03:07.9]} 12... Nc4
{[%clk 0:03:12.7]} 13. b3 {[%clk 0:03:07.3]} 13... Nb6 {[%clk 0:03:13.7]} 14.
Nbd2 {[%clk 0:03:08.5]} 14... Re8 {[%clk 0:03:12.7]} 15. Nf1 {[%clk 0:03:09.6]}
15... Nbd7 {[%clk 0:03:11.4]} 16. Ne3 {[%clk 0:03:05]} 16... Nf8 {[%clk
0:03:12.4]} 17. Nf5 {[%clk 0:02:58.2]} 17... Ng6 {[%clk 0:03:08.9]} 18. Nxe7+
{[%clk 0:02:57.3]} 18... Qxe7 {[%clk 0:03:09.8]} 19. Kh2 {[%clk 0:02:54.2]}
19... h6 {[%clk 0:03:01.5]} 20. Be3 {[%clk 0:02:38.8]} 20... Nh5 {[%clk
0:03:02]} 21. g3 {[%clk 0:02:35.3]} 21... Rf8 {[%clk 0:02:44.1]} 22. Ng1 {[%clk
0:02:33.5]} 22... Nf6 {[%clk 0:02:35.2]} 23. b4 {[%clk 0:02:32.8]} 23... c4
{[%clk 0:02:31.3]} 24. a4 {[%clk 0:02:33.5]} 24... Bd7 {[%clk 0:02:31.3]} 25.
axb5 {[%clk 0:02:30.5]} 25... axb5 {[%clk 0:02:33.2]} 26. Qf3 {[%clk 0:02:18.7]}
26... Nh7 {[%clk 0:02:27.9]} 27. Ra5 {[%clk 0:02:09.2]} 27... Ng5 {[%clk
0:02:23.4]} 28. Qg2 {[%clk 0:01:54.5]} 28... Rab8 {[%clk 0:01:33.3]} 29. Ra7
{[%clk 0:01:53.1]} 29... h5 {[%clk 0:01:32]} 30. Bxg5 {[%clk 0:01:51.1]} 30...
Qxg5 {[%clk 0:01:26.4]} 31. Rxd7 {[%clk 0:01:50.5]} 31... Qd2 {[%clk 0:01:23.6]}
32. Re2 {[%clk 0:01:49.1]} 32... Qxc3 {[%clk 0:01:24.5]} 33. Qf3 {[%clk
0:01:32.3]} 33... Qxb4 {[%clk 0:01:20.5]} 34. Qxh5 {[%clk 0:01:33.2]} 34... Rfd8
{[%clk 0:00:49.1]} 35. Rxf7 {[%clk 0:00:44.9]} 35... Kxf7 {[%clk 0:00:50]} 36.
Nf3 {[%clk 0:00:44.6]} 36... Rf8 {[%clk 0:00:27]} 37. Ng5+ {[%clk 0:00:42.5]}
37... Kf6 {[%clk 0:00:19.6]} 38. Nh7+ {[%clk 0:00:39.6]} 38... Ke7 {[%clk
0:00:17.3]} 39. Qxg6 {[%clk 0:00:38.6]} 39... Rbe8 {[%clk 0:00:07.4]} 40. Qxg7+
{[%clk 0:00:28]} 40... Rf7 {[%clk 0:00:08.5]} 41. Qg5+ {[%clk 0:00:29.2]} 41...
Kd7 {[%clk 0:00:08.9]} 42. Nf6+ {[%clk 0:00:30.3]} 42... Rxf6 {[%clk 0:00:09.9]}
43. Qxf6 {[%clk 0:00:32.2]} 43... Qc5 {[%clk 0:00:10.9]} 44. Bd1 {[%clk
0:00:30.8]} 44... b4 {[%clk 0:00:05.8]} 45. Ra2 {[%clk 0:00:31.5]} 45... b3
{[%clk 0:00:05.1]} 46. Bg4+ {[%clk 0:00:27.9]} 46... Kc7 {[%clk 0:00:06.2]} 47.
Qf7+ {[%clk 0:00:29.2]} 47... Kb6 {[%clk 0:00:05.4]} 48. Qa7+ {[%clk 0:00:30]}
48... Kb5 {[%clk 0:00:06.8]} 49. Qa5# {[%clk 0:00:30.3]} 1-0

[Event "*** Titled Tuesday Blitz"]
[Site "Chess.com"]
[Date "2020.02.04"]
[Round "7"]
[White "Vuk2000"]
[Black "2nd_life"]
[Result "0-1"]
[WhiteElo "2656"]
[BlackElo "2496"]
[TimeControl "180+2"]
[EndTime "14:33:28 PST"]
[Termination "2nd_life won by resignation"]

1. d4 {[%clk 0:03:01.9]} 1... Nf6 {[%clk 0:02:52.1]} 2. Bg5 {[%clk 0:03:01.9]}
2... e6 {[%clk 0:02:53.2]} 3. e4 {[%clk 0:03:02.8]} 3... h6 {[%clk 0:02:54.5]}
4. Bxf6 {[%clk 0:03:04]} 4... Qxf6 {[%clk 0:02:56.4]} 5. c3 {[%clk 0:03:05.8]}
5... d6 {[%clk 0:02:54.5]} 6. Bd3 {[%clk 0:03:07]} 6... e5 {[%clk 0:02:54.3]} 7.
Ne2 {[%clk 0:03:07.8]} 7... g6 {[%clk 0:02:53]} 8. O-O {[%clk 0:03:08.9]} 8...
Bg7 {[%clk 0:02:53.6]} 9. f4 {[%clk 0:02:46]} 9... Qe7 {[%clk 0:02:53.8]} 10.
Nd2 {[%clk 0:02:45.8]} 10... Nd7 {[%clk 0:02:52.9]} 11. Nf3 {[%clk 0:02:43]}
11... O-O {[%clk 0:02:49.5]} 12. Qd2 {[%clk 0:02:43.3]} 12... a6 {[%clk
0:02:34.6]} 13. a4 {[%clk 0:02:37.1]} 13... exd4 {[%clk 0:02:24]} 14. cxd4
{[%clk 0:02:37.2]} 14... c5 {[%clk 0:02:24.6]} 15. d5 {[%clk 0:02:38.5]} 15...
Rb8 {[%clk 0:02:20.5]} 16. Nc3 {[%clk 0:02:39.1]} 16... Re8 {[%clk 0:02:04.4]}
17. Rae1 {[%clk 0:02:38.6]} 17... b5 {[%clk 0:01:59.6]} 18. axb5 {[%clk
0:02:37.5]} 18... axb5 {[%clk 0:02:00.6]} 19. Nxb5 {[%clk 0:02:38.9]} 19... Ba6
{[%clk 0:01:53.3]} 20. Na3 {[%clk 0:02:16]} 20... Rxb2 {[%clk 0:01:51.3]} 21.
Qd1 {[%clk 0:02:13.9]} 21... Bxd3 {[%clk 0:01:30.9]} 22. Qxd3 {[%clk 0:02:15.8]}
22... Reb8 {[%clk 0:01:23.7]} 23. Nc4 {[%clk 0:02:12.8]} 23... R8b3 {[%clk
0:01:21.2]} 24. Qd1 {[%clk 0:02:10.6]} 24... Rb1 {[%clk 0:01:13.8]} 25. Qe2
{[%clk 0:01:53.1]} 25... Rxe1 {[%clk 0:01:11.6]} 26. Rxe1 {[%clk 0:01:54.8]}
26... Nb6 {[%clk 0:00:54.2]} 27. Nxb6 {[%clk 0:01:44.3]} 27... Rxb6 {[%clk
0:00:54.7]} 28. e5 {[%clk 0:01:45.8]} 28... Kh7 {[%clk 0:00:31.5]} 29. e6 {[%clk
0:01:28.8]} 29... fxe6 {[%clk 0:00:30.9]} 30. Qxe6 {[%clk 0:01:29.4]} 30... Qf8
{[%clk 0:00:23.4]} 31. g3 {[%clk 0:01:11.6]} 31... c4 {[%clk 0:00:21.4]} 32. Qe4
{[%clk 0:00:50.6]} 32... c3 {[%clk 0:00:19.4]} 33. Nd4 {[%clk 0:00:42.5]} 33...
Rb4 {[%clk 0:00:08.6]} 34. Ne6 {[%clk 0:00:43.7]} 34... Qb8 {[%clk 0:00:09.2]}
35. Qd3 {[%clk 0:00:30.2]} 35... Qb6+ {[%clk 0:00:06.4]} 36. Kh1 {[%clk
0:00:27.6]} 36... Qb5 {[%clk 0:00:07.7]} 37. Qf3 {[%clk 0:00:14.7]} 37... Rb1
{[%clk 0:00:06.9]} 38. Qe4 {[%clk 0:00:11.4]} 38... Rxe1+ {[%clk 0:00:07.3]} 39.
Qxe1 {[%clk 0:00:13.3]} 39... c2 {[%clk 0:00:08]} 40. Kg2 {[%clk 0:00:13.7]}
40... Qxd5+ {[%clk 0:00:07.9]} 41. Kh3 {[%clk 0:00:14.3]} 41... Qxe6+ {[%clk
0:00:06.4]} 42. Qxe6 {[%clk 0:00:02.3]} 42... c1=Q {[%clk 0:00:08.3]} 43. Qxd6
{[%clk 0:00:02.8]} 43... Qf1+ {[%clk 0:00:09]} 44. Kh4 {[%clk 0:00:02.7]} 44...
Qe2 {[%clk 0:00:08.9]} 45. Kh3 {[%clk 0:00:02.6]} 45... Qf1+ {[%clk 0:00:10.1]}
46. Kh4 {[%clk 0:00:03.6]} 46... Qg2 {[%clk 0:00:11.3]} 47. h3 {[%clk
0:00:04.4]} 47... Qe2 {[%clk 0:00:12.5]} 48. Qd5 {[%clk 0:00:04.8]} 48... Bf6+
{[%clk 0:00:13.3]} 0-1

[Event "*** Titled Tuesday Blitz"]
[Site "Chess.com"]
[Date "2020.02.04"]
[Round "7"]
[White "M1711"]
[Black "Kimster98"]
[Result "1-0"]
[WhiteElo "2520"]
[BlackElo "2681"]
[TimeControl "180+2"]
[EndTime "14:33:36 PST"]
[Termination "M1711 won by resignation"]

1. d4 {[%clk 0:03:01.9]} 1... Nf6 {[%clk 0:03:00.3]} 2. c4 {[%clk 0:03:03.1]}
2... e6 {[%clk 0:03:01]} 3. Nf3 {[%clk 0:03:04.2]} 3... b6 {[%clk 0:03:01.9]} 4.
g3 {[%clk 0:03:05.1]} 4... Bb7 {[%clk 0:03:02.5]} 5. Bg2 {[%clk 0:03:06.4]} 5...
Bb4+ {[%clk 0:03:04.1]} 6. Bd2 {[%clk 0:03:06.1]} 6... a5 {[%clk 0:03:05.6]} 7.
O-O {[%clk 0:03:06.7]} 7... O-O {[%clk 0:03:05.9]} 8. Nc3 {[%clk 0:03:07.4]}
8... d6 {[%clk 0:02:53.2]} 9. Rc1 {[%clk 0:03:02.9]} 9... Nbd7 {[%clk
0:02:51.4]} 10. Re1 {[%clk 0:02:52.2]} 10... Qe7 {[%clk 0:02:45.6]} 11. Qc2
{[%clk 0:02:49.6]} 11... Bxc3 {[%clk 0:02:45.3]} 12. Bxc3 {[%clk 0:02:51.5]}
12... Be4 {[%clk 0:02:38.8]} 13. Qd2 {[%clk 0:02:49.9]} 13... Bb7 {[%clk
0:02:38.5]} 14. Qd3 {[%clk 0:02:43.1]} 14... Be4 {[%clk 0:02:34]} 15. Qd2 {[%clk
0:02:22.4]} 15... h6 {[%clk 0:01:47.3]} 16. b3 {[%clk 0:02:15.2]} 16... Rad8
{[%clk 0:01:36.9]} 17. a3 {[%clk 0:01:55.3]} 17... Rfe8 {[%clk 0:01:36.3]} 18.
b4 {[%clk 0:01:55.3]} 18... axb4 {[%clk 0:01:37.9]} 19. axb4 {[%clk 0:01:56.8]}
19... e5 {[%clk 0:01:37.8]} 20. d5 {[%clk 0:01:54.5]} 20... Ra8 {[%clk
0:01:37.7]} 21. Ra1 {[%clk 0:01:52.1]} 21... b5 {[%clk 0:01:35.7]} 22. cxb5
{[%clk 0:01:25.2]} 22... Bxd5 {[%clk 0:01:23.6]} 23. Ra5 {[%clk 0:01:25.5]}
23... Nb6 {[%clk 0:01:22.1]} 24. Qc2 {[%clk 0:01:18]} 24... Be4 {[%clk
0:01:18.4]} 25. Qb3 {[%clk 0:01:16.7]} 25... Bd5 {[%clk 0:01:18.3]} 26. Qb1
{[%clk 0:01:14.6]} 26... Nc4 {[%clk 0:01:08.7]} 27. Ra6 {[%clk 0:01:10.6]} 27...
Bb7 {[%clk 0:01:08.6]} 28. Ra2 {[%clk 0:01:07.2]} 28... Nb6 {[%clk 0:01:05.1]}
29. Rd1 {[%clk 0:00:50.6]} 29... Rxa2 {[%clk 0:01:01.4]} 30. Qxa2 {[%clk
0:00:51.9]} 30... Ra8 {[%clk 0:01:03]} 31. Qc2 {[%clk 0:00:51.9]} 31... Qe8
{[%clk 0:00:54.2]} 32. Bxe5 {[%clk 0:00:25.6]} 32... dxe5 {[%clk 0:00:27.4]} 33.
Qxc7 {[%clk 0:00:26]} 33... Bxf3 {[%clk 0:00:28.7]} 34. Bxf3 {[%clk 0:00:23.7]}
34... Rb8 {[%clk 0:00:28.7]} 35. Bc6 {[%clk 0:00:22.8]} 35... Qc8 {[%clk
0:00:26.9]} 36. Qxe5 {[%clk 0:00:22.2]} 36... Qf8 {[%clk 0:00:23.7]} 37. h3
{[%clk 0:00:18.6]} 37... Rd8 {[%clk 0:00:21.8]} 38. Rb1 {[%clk 0:00:15.4]} 38...
Nfd5 {[%clk 0:00:20.1]} 39. Qd4 {[%clk 0:00:09.3]} 39... f5 {[%clk 0:00:08.8]}
40. Qc5 {[%clk 0:00:06.1]} 40... Qe7 {[%clk 0:00:07.6]} 41. Rd1 {[%clk
0:00:04.3]} 41... Qxe2 {[%clk 0:00:06.7]} 42. Bxd5+ {[%clk 0:00:03.1]} 42...
Nxd5 {[%clk 0:00:06.2]} 43. Rxd5 {[%clk 0:00:04.7]} 43... Qe1+ {[%clk
0:00:07.5]} 44. Kh2 {[%clk 0:00:04.3]} 44... Re8 {[%clk 0:00:04.5]} 45. Rxf5
{[%clk 0:00:04]} 45... Re2 {[%clk 0:00:05.2]} 46. Qd5+ {[%clk 0:00:04.6]} 46...
Kh7 {[%clk 0:00:06]} 47. Qf3 {[%clk 0:00:05.6]} 47... Qf1 {[%clk 0:00:04]} 48.
Rf7 {[%clk 0:00:05.2]} 48... Re1 {[%clk 0:00:04.5]} 49. Qf5+ {[%clk 0:00:06.4]}
1-0

[Event "*** Titled Tuesday Blitz"]
[Site "Chess.com"]
[Date "2020.02.04"]
[Round "7"]
[White "Sanan_Sjugirov"]
[Black "Dhaydon19"]
[Result "1-0"]
[WhiteElo "2843"]
[BlackElo "2681"]
[TimeControl "180+2"]
[EndTime "14:33:45 PST"]
[Termination "Sanan_Sjugirov won by resignation"]

1. e4 {[%clk 0:03:01.9]} 1... c6 {[%clk 0:03:01.7]} 2. d4 {[%clk 0:02:59.9]}
2... d5 {[%clk 0:03:03.6]} 3. e5 {[%clk 0:03:01]} 3... Bf5 {[%clk 0:03:04.2]} 4.
Nf3 {[%clk 0:03:01.6]} 4... e6 {[%clk 0:03:05.5]} 5. Be2 {[%clk 0:03:03]} 5...
Ne7 {[%clk 0:03:06.4]} 6. O-O {[%clk 0:03:03.9]} 6... Nd7 {[%clk 0:03:06.6]} 7.
Nbd2 {[%clk 0:02:54]} 7... c5 {[%clk 0:03:06.9]} 8. dxc5 {[%clk 0:02:24.9]} 8...
Nc6 {[%clk 0:03:07.3]} 9. Nb3 {[%clk 0:02:24.9]} 9... Nxc5 {[%clk 0:03:04.9]}
10. Nbd4 {[%clk 0:02:20.9]} 10... Be4 {[%clk 0:03:03.5]} 11. Be3 {[%clk
0:02:12.3]} 11... Be7 {[%clk 0:03:02.6]} 12. Rc1 {[%clk 0:02:04.9]} 12... O-O
{[%clk 0:03:01.4]} 13. c4 {[%clk 0:02:05.6]} 13... dxc4 {[%clk 0:02:59.8]} 14.
Rxc4 {[%clk 0:01:54.6]} 14... Bxf3 {[%clk 0:02:18.7]} 15. Nxf3 {[%clk
0:01:48.8]} 15... Nd7 {[%clk 0:02:19]} 16. Re4 {[%clk 0:01:25.1]} 16... Nb6
{[%clk 0:02:17.1]} 17. Qb1 {[%clk 0:01:21.6]} 17... Nd5 {[%clk 0:02:15.8]} 18.
Bd2 {[%clk 0:01:20.4]} 18... Qb6 {[%clk 0:01:44.7]} 19. a3 {[%clk 0:01:20.5]}
19... Rad8 {[%clk 0:01:42.2]} 20. Rg4 {[%clk 0:01:16.5]} 20... g6 {[%clk
0:01:42.2]} 21. h4 {[%clk 0:01:09.2]} 21... Qc7 {[%clk 0:01:32]} 22. Qe4 {[%clk
0:01:06.6]} 22... Rde8 {[%clk 0:01:28.3]} 23. Bh6 {[%clk 0:01:02.2]} 23... f5
{[%clk 0:01:28.4]} 24. exf6 {[%clk 0:01:02.6]} 24... Rxf6 {[%clk 0:01:26.1]} 25.
h5 {[%clk 0:00:59.2]} 25... Bf8 {[%clk 0:01:18.1]} 26. Bg5 {[%clk 0:00:57.9]}
26... Rf5 {[%clk 0:01:14.9]} 27. hxg6 {[%clk 0:00:56.4]} 27... hxg6 {[%clk
0:01:16.8]} 28. Bd3 {[%clk 0:00:50.4]} 28... Kf7 {[%clk 0:01:08.2]} 29. Qe2
{[%clk 0:00:43.6]} 29... Bg7 {[%clk 0:00:51.3]} 30. Rh4 {[%clk 0:00:37.5]} 30...
Ne5 {[%clk 0:00:46.4]} 31. Bxf5 {[%clk 0:00:33.8]} 31... exf5 {[%clk 0:00:38.8]}
32. Nxe5+ {[%clk 0:00:34.2]} 32... Rxe5 {[%clk 0:00:38.3]} 33. Qf3 {[%clk
0:00:33.5]} 33... Qc6 {[%clk 0:00:33.6]} 34. Rd1 {[%clk 0:00:28.7]} 34... Bf6
{[%clk 0:00:22.7]} 35. Rh7+ {[%clk 0:00:24]} 35... Ke6 {[%clk 0:00:13.2]} 36.
Bxf6 {[%clk 0:00:21.6]} 36... Kxf6 {[%clk 0:00:12.8]} 37. Qg3 {[%clk 0:00:17.2]}
37... f4 {[%clk 0:00:10.8]} 38. Qh4+ {[%clk 0:00:17.3]} 38... Rg5 {[%clk
0:00:12.2]} 39. Rh8 {[%clk 0:00:14.5]} 39... Qc2 {[%clk 0:00:11.1]} 40. Re1
{[%clk 0:00:10.4]} 40... Kf5 {[%clk 0:00:05.6]} 41. Rf8+ {[%clk 0:00:08.3]}
41... Nf6 {[%clk 0:00:06.9]} 42. Re5+ {[%clk 0:00:06.5]} 42... Kxe5 {[%clk
0:00:06.9]} 43. Qxg5+ {[%clk 0:00:07.8]} 43... Qf5 {[%clk 0:00:08.8]} 44. Qxf5+
{[%clk 0:00:07.3]} 44... gxf5 {[%clk 0:00:10.7]} 45. Rf7 {[%clk 0:00:07.6]}
45... Ne4 {[%clk 0:00:11.1]} 46. Rxb7 {[%clk 0:00:08.4]} 46... a6 {[%clk
0:00:13]} 47. Rb6 {[%clk 0:00:08.9]} 47... Nc5 {[%clk 0:00:14.3]} 48. b4 {[%clk
0:00:09.6]} 48... Nd7 {[%clk 0:00:15.4]} 49. Rxa6 {[%clk 0:00:10.6]} 49... Nb8
{[%clk 0:00:16.4]} 50. Ra7 {[%clk 0:00:10.9]} 50... Nc6 {[%clk 0:00:14.1]} 51.
Rc7 {[%clk 0:00:11.8]} 1-0

[Event "*** Titled Tuesday Blitz"]
[Site "Chess.com"]
[Date "2020.02.04"]
[Round "7"]
[White "Shant_Sargsyan"]
[Black "Korchmar_Vasiliy"]
[Result "0-1"]
[WhiteElo "2982"]
[BlackElo "2811"]
[TimeControl "180+2"]
[EndTime "14:33:48 PST"]
[Termination "Korchmar_Vasiliy won by resignation"]

1. d4 {[%clk 0:02:43.9]} 1... d5 {[%clk 0:02:59.8]} 2. c4 {[%clk 0:02:45.1]}
2... c6 {[%clk 0:03:00.3]} 3. cxd5 {[%clk 0:02:46.3]} 3... cxd5 {[%clk
0:03:01.4]} 4. Bf4 {[%clk 0:02:48]} 4... Nc6 {[%clk 0:03:01.7]} 5. e3 {[%clk
0:02:49.5]} 5... Nf6 {[%clk 0:03:02.3]} 6. Nc3 {[%clk 0:02:50.9]} 6... Bg4
{[%clk 0:02:58.1]} 7. Qb3 {[%clk 0:02:46.7]} 7... Na5 {[%clk 0:02:57.9]} 8. Qc2
{[%clk 0:02:44.3]} 8... a6 {[%clk 0:02:53.5]} 9. Bd3 {[%clk 0:02:43.2]} 9... Rc8
{[%clk 0:02:54.2]} 10. Nge2 {[%clk 0:02:42.1]} 10... b5 {[%clk 0:02:54.4]} 11.
a3 {[%clk 0:02:41.6]} 11... e6 {[%clk 0:02:52.1]} 12. O-O {[%clk 0:02:42.8]}
12... Be7 {[%clk 0:02:49.8]} 13. Ng3 {[%clk 0:02:43.4]} 13... Bh5 {[%clk
0:02:37.1]} 14. Nxh5 {[%clk 0:02:41.2]} 14... Nxh5 {[%clk 0:02:39]} 15. Be5
{[%clk 0:02:39.7]} 15... Nf6 {[%clk 0:02:38.7]} 16. Qe2 {[%clk 0:02:38.7]} 16...
Nc4 {[%clk 0:02:37.5]} 17. Bxf6 {[%clk 0:02:32.8]} 17... Bxf6 {[%clk 0:02:37]}
18. a4 {[%clk 0:02:33.9]} 18... b4 {[%clk 0:02:37.4]} 19. Ne4 {[%clk 0:02:33.9]}
19... Be7 {[%clk 0:02:30.1]} 20. Nd2 {[%clk 0:02:27.4]} 20... Nxb2 {[%clk
0:02:21.6]} 21. Bxa6 {[%clk 0:02:27.6]} 21... Rc7 {[%clk 0:02:13.9]} 22. Bb5+
{[%clk 0:02:28]} 22... Kf8 {[%clk 0:02:15.3]} 23. Rfb1 {[%clk 0:02:25.4]} 23...
Nc4 {[%clk 0:02:13.1]} 24. Nxc4 {[%clk 0:02:22.8]} 24... dxc4 {[%clk 0:02:15]}
25. Bxc4 {[%clk 0:02:24.7]} 25... g6 {[%clk 0:02:12.4]} 26. a5 {[%clk
0:02:25.7]} 26... Kg7 {[%clk 0:02:13.3]} 27. a6 {[%clk 0:02:27]} 27... Qb8
{[%clk 0:02:01]} 28. Bd3 {[%clk 0:02:24.5]} 28... Qa7 {[%clk 0:01:58.7]} 29. Be4
{[%clk 0:02:24]} 29... Rhc8 {[%clk 0:01:57.1]} 30. g3 {[%clk 0:02:24.1]} 30...
h5 {[%clk 0:01:52.4]} 31. h4 {[%clk 0:02:25.1]} 31... Rc3 {[%clk 0:01:50.7]} 32.
Bb7 {[%clk 0:02:20.7]} 32... R8c7 {[%clk 0:01:52]} 33. Ra2 {[%clk 0:02:10.1]}
33... Rxb7 {[%clk 0:01:47.4]} 34. axb7 {[%clk 0:02:08.9]} 34... Qxb7 {[%clk
0:01:49.3]} 35. Rc2 {[%clk 0:02:08.2]} 35... Ra3 {[%clk 0:01:50.3]} 36. Rcb2
{[%clk 0:02:09.2]} 36... Qe4 {[%clk 0:01:44.7]} 37. Rb3 {[%clk 0:02:04.4]} 37...
Bd6 {[%clk 0:01:39.2]} 38. Qd2 {[%clk 0:01:30.7]} 38... g5 {[%clk 0:01:35.5]}
39. hxg5 {[%clk 0:01:18.4]} 39... h4 {[%clk 0:01:37.4]} 40. f4 {[%clk
0:01:19.7]} 40... hxg3 {[%clk 0:01:32.2]} 41. Qg2 {[%clk 0:01:18.9]} 41... Qf5
{[%clk 0:01:15.9]} 42. Qxg3 {[%clk 0:01:08.8]} 42... Rxb3 {[%clk 0:01:17.3]} 43.
Rxb3 {[%clk 0:01:09.9]} 43... Qc2 {[%clk 0:01:19]} 44. e4 {[%clk 0:01:10]} 44...
Qxe4 {[%clk 0:01:16]} 45. Qf3 {[%clk 0:01:05.6]} 45... Qxd4+ {[%clk 0:01:14.7]}
46. Kg2 {[%clk 0:01:04.6]} 46... Bxf4 {[%clk 0:01:15.2]} 47. Rd3 {[%clk
0:00:59]} 47... Qc4 {[%clk 0:01:12]} 48. Rd7 {[%clk 0:00:53.7]} 48... b3 {[%clk
0:01:01.7]} 49. g6 {[%clk 0:00:42]} 49... Kxg6 {[%clk 0:00:52.7]} 50. Qg4+
{[%clk 0:00:40.5]} 50... Kf6 {[%clk 0:00:54.1]} 51. Qh4+ {[%clk 0:00:39.5]}
51... Kg7 {[%clk 0:00:39.3]} 52. Rd8 {[%clk 0:00:39.9]} 52... Qe4+ {[%clk
0:00:31.9]} 53. Kg1 {[%clk 0:00:20.4]} 53... Be3+ {[%clk 0:00:32.1]} 0-1